Cogmind - Beta 12 *** ADVENTURER MODE // 2023.12.03 @ 17:46:54 Player: Ty Piggbottom Result: Self-destructed Performance ------------- Evolutions (0) 0 Regions Visited (4) 800 Robots Destroyed (65) 325 Value Destroyed (836) 836 Prototype IDs (6) 120 Alien Tech Used (0) 0 Bonus (0) 0 TOTAL SCORE: 2081 Bonus ------- None Cogmind --------- Core Integrity 49/250 Matter 1615/1800 Energy 90/100 System Corruption 0% Temperature Cool (0) Movement Rolling (115) Ox1 Location -9/Mines Parts ------- > --- POWER (1) -------- (None) > --- PROPULSION (2) --- Compact Wheel > --- UTILITY (2) ------ Large Storage Unit YI-UF0's Bottomless Matter Pit > --- WEAPON (2) ------- Improved Light Cannon > --- INVENTORY (15) --- Light Nuclear Core Improved Aluminum Leg Improved Aluminum Leg Flexi-carbon Leg Humpback Visual Processing Unit Melee Analysis Suite Hardened Light Armor Plating EM Pulse Gun Improved Light Cannon Grenade Launcher Rocket Launcher Datajack Katana Peak State ------------ > --- POWER ------------ Improved Ion Engine > --- PROPULSION ------- Compact Wheel Compact Wheel > --- UTILITY ---------- Large Storage Unit Experimental Sensor Array > --- WEAPON ----------- Improved Light Cannon Improved Light Cannon > --- INVENTORY -------- Reinforced Deuterium Engine Fission Core Fission Core Hover Unit Humpback Visual Processing Unit Targeting Computer ECM Suite Hardened Light Armor Plating EM Pulse Gun Improved Light Cannon Improved Light Cannon Rocket Launcher Datajack [Rating: 21] Favorites ----------- Power Ion Engine Engine Ion Engine Propulsion Compact Wheel Treads Light Treads Leg Aluminum Leg Wheel Compact Wheel Hover Unit Hover Unit Utility Large Storage Unit Device Experimental Sensor Array Storage Large Storage Unit Processor Signal Interpreter Protection Hardened Light Armor Plating Weapon Improved Light Cannon Energy Gun Medium Laser Energy Cannon Beam Cannon Ballistic Gun Assault Rifle Ballistic Cannon Improved Light Cannon Launcher Grenade Launcher Special Melee Weapon Datajack Build | -11 -10 -10 -10 -9 ------- Run | Jun Mat Min Exi Min Slots Evolved . | . . . . . Power . | . . . . . Propulsion . | . . . . . Utility . | . . . . . Weapon . | . . . . . Parts Attached 78 | 10 35 6 6 21 Power 6 | 1 . 1 1 3 Engine 6 | 1 . 1 1 3 Core . | . . . . . Reactor . | . . . . . Propulsion 22 | 4 7 3 . 8 Treads 2 | 2 . . . . Leg 4 | 2 . . . 2 Wheel 13 | . 4 3 . 6 Hover 3 | . 3 . . . Flight . | . . . . . Utility 17 | 2 9 . 3 3 Device 4 | 1 1 . . 2 Storage 10 | 1 6 . 2 1 Processor 2 | . 2 . . . Hackware . | . . . . . Protection 1 | . . . 1 . Artifact . | . . . . . Weapon 33 | 3 19 2 2 7 Energy Gun 8 | 3 5 . . . Energy Cannon 1 | . 1 . . . Ballistic Gun 5 | . 5 . . . Ballistic Cannon 8 | . 2 1 1 4 Launcher 4 | . . 1 . 3 Special Weapon . | . . . . . Impact Weapon . | . . . . . Slashing Weapon . | . . . . . Piercing Weapon . | . . . . . Special Melee Weapon 7 | . 6 . 1 . Unidentified Prototypes 2 | . . . . 2 Parts Lost 9 | . . 2 . 7 Power 3 | . . . . 3 Propulsion 3 | . . 2 . 1 Utility 1 | . . . . 1 Weapon 2 | . . . . 2 Highest Loss Streak 4 | . . 2 . 4 To Critical Strikes . | . . . . . Average Slot Usage (%) 96 | . 99 93 92 96 Engine 13 | . 14 13 14 12 Wheel 16 | . 7 8 28 27 Hover 10 | . 20 14 . . Device 3 | . 3 . . 11 Storage 14 | . 14 14 14 14 Processor 8 | . 10 14 6 . Energy Gun 3 | . 11 . . . Ballistic Gun 1 | . 4 . . . Ballistic Cannon 19 | . 6 25 28 25 Naked Turns . | . . . . . Heaviest Build 215 | 15 90 35 215 40 Greatest Support 40 | 40 32 32 32 32 Greatest Overweight (x) 6 | 1 3 2 6 2 Average Overweight (x) 1 | . 1 1 2 . Largest Inventory Capacity 35 | 8 25 15 35 15 Average Capacity 16 | 7 13 15 24 15 Most Carried 15 | 8 15 14 15 15 Average Carried 12 | 6 9 12 14 14 Final Capacity 15 | 8 15 15 15 15 Final Carried 15 | 8 10 14 15 15 Class Distribution -------------------- 69% | Mutant 20% | Scavenger-Mutant 10% | Hauler-Mutant Dominant Class ---------------- Mutant | -10/Materials Mutant | -10/Mines Hauler-Mutant | -10/Exiles Mutant | -9/Mines Resources | -11 -10 -10 -10 -9 ----------- Run | Jun Mat Min Exi Min Matter Collected 1684 | 300 352 269 . 763 Remotely 186 | 115 71 . . . Salvage Created 1965 | 80 546 221 . 1118 Parts 103 | 7 38 11 . 47 Haulers Intercepted 2 | . 2 . . . Recyclers Shooed 8 | . 2 1 . 5 Parts Field Recycled . | . . . . . Retrieved Matter . | . . . . . Parts Self-Destructed . | . . . . . Prevented . | . . . . . Kills | -11 -10 -10 -10 -9 ------- Run | Jun Mat Min Exi Min Combat Hostiles Destroyed 30 | . 9 4 . 17 Guns 9 | . 9 . . . Cannons 15 | . . 4 . 11 AOE 6 | . . . . 6 Classes Destroyed 12 | 2 3 3 . 4 Worker 15 | 2 5 . . 8 Builder 1 | . . . . 1 Tunneler 2 | . . 1 . 1 Hauler 2 | . 2 . . . Recycler 17 | 1 2 2 . 12 Watcher 3 | . 3 . . . Swarmer 12 | . 9 . . 3 Grunt 7 | . . 2 . 5 Duelist 1 | . . . . 1 Sentry 2 | . . 2 . . Demolisher 2 | . . . . 2 Assembled 5 | . . . . 5 Best Kill Streak 8 | 2 5 3 . 8 Combat Bots Only 6 | . 3 2 . 6 Max Kills in Single Turn 2 | 1 1 1 . 2 Gunslinging . | . . . . . Exploded 2 | . . . . 2 Melee . | . . . . . Uniques/NPCs Destroyed 1 | . . . . 1 YI-UF0 (-9/Mines) Combat | -11 -10 -10 -10 -9 -------- Run | Jun Mat Min Exi Min Damage Taken 1114 | . 146 201 . 767 Core 201 | . 49 20 . 132 Absorbed by Shields . | . . . . . Regen/Repaired (Parts) 17 | . 17 . . . Core Remaining (%) 100 | 100 . . . . Volleys Fired 145 | 4 46 24 . 71 Largest 2 | 2 2 2 . 2 Hottest 100 | 100 100 78 . 78 Shots Fired 256 | 8 91 39 . 118 Gun 99 | 8 91 . . . Cannon 144 | . . 37 . 107 Launcher 13 | . . 2 . 11 Special . | . . . . . Kinetic 148 | . 4 37 . 107 Thermal 80 | 6 74 . . . Explosive 13 | . . 2 . 11 Electromagnetic 15 | 2 13 . . . Robot Hit Streak 15 | 5 7 10 . 15 Robot Miss Streak 3 | . 3 2 . 2 Penetration Max . | . . . . . Secondary Targets 3 | . 3 . . . Max Gunslinging Chain 1 | . 1 . . . Shots Hit Robots 169 | 5 56 26 . 82 Core Hits 83 | 4 25 9 . 45 Critical Kills . | . . . . . Critical Parts Destroyed . | . . . . . Critical Strikes 11 | . 4 1 . 6 Burn 4 | . 4 . . . Blast 7 | . . 1 . 6 Melee Attacks 1 | . 1 . . . Impact . | . . . . . Slashing . | . . . . . Piercing . | . . . . . Sneak Attacks 1 | . 1 . . . Combat Hostiles . | . . . . . Follow-up Attacks . | . . . . . Damage Inflicted 3574 | 75 721 587 . 2191 Guns 796 | 75 721 . . . Cannons 2245 | . . 551 . 1694 Explosions 533 | . . 36 . 497 Melee . | . . . . . Ramming . | . . . . . Kinetic 2283 | . 38 551 . 1694 Thermal 614 | 63 551 . . . Explosive 533 | . . 36 . 497 Electromagnetic 144 | 12 132 . . . Impact . | . . . . . Slashing . | . . . . . Piercing . | . . . . . Highest Corruption . | . . . . . Average Corruption . | . . . . . Corruption Purged . | . . . . . Corruption Blocked . | . . . . . Overload Shots . | . . . . . Overflow Damage 78 | . . 27 . 51 Projectiles 69 | . . 27 . 42 Explosions 9 | . . . . 9 Melee . | . . . . . Knockbacks 26 | . . 2 . 24 Impact . | . . . . . Kinetic 24 | . . 2 . 22 Secondary 2 | . . . . 2 Self-Inflicted Damage 17 | . . . . 17 Shots 1 | . . . . 1 Rammed . | . . . . . Targets Rammed . | . . . . . Kicked . | . . . . . Crushed . | . . . . . Highest Temperature 273 | 60 273 84 . 144 Average Temperature 55 | 24 81 32 . 39 Received Heat Transfer 226 | . . 138 . 88 Siege Activations . | . . . . . Robots Corrupted . | . . . . . Combat Hostiles . | . . . . . Parts Fried . | . . . . . Impact Corruptions . | . . . . . Robots Melted . | . . . . . Combat Hostiles . | . . . . . Parts Melted 4 | . 4 . . . Heat Transferred 2109 | 185 1924 . . . Parts Sabotaged . | . . . . . Parts Stolen . | . . . . . Parts Stripped . | . . . . . Power Chain Reactions . | . . . . . Missiles Intercepted . | . . . . . Alert | -11 -10 -10 -10 -9 ------- Run | Jun Mat Min Exi Min Peak Influence 231 | 15 231 56 . 218 Initial 8 | . 8 . . . Average 44 | 5 44 29 . 69 Maximum Alert Level 1 | . 1 . . 1 Low Security (%) 94 | 100 97 100 . 83 Level 1 5 | . 2 . . 16 Level 2 . | . . . . . Level 3 . | . . . . . Level 4 . | . . . . . Level 5 . | . . . . . High Security . | . . . . . Max Security . | . . . . . Squads Dispatched . | . . . . . Investigation . | . . . . . Extermination . | . . . . . Reinforcement . | . . . . . Assault . | . . . . . Garrison . | . . . . . Intercept . | . . . . . Searches Triggered . | . . . . . Construction Impeded . | . . . . . Haulers Reinforced . | . . . . . Active Scanning Responses . | . . . . . Cargo Convoy Interrupts . | . . . . . Stealth | -11 -10 -10 -10 -9 --------- Run | Jun Mat Min Exi Min Distress Signals . | . . . . . Communications Jammed . | . . . . . Distress Signals . | . . . . . Times Spotted 35 | . 13 4 . 18 Peak Tracking Total 5 | . 3 2 . 5 Tactical Retreats 1 | . . . . 1 Traps | -11 -10 -10 -10 -9 ------- Run | Jun Mat Min Exi Min Traps Triggered 3 | . 3 . . . Indirectly . | . . . . . Trap Hack Attempts . | . . . . . Triggered . | . . . . . Disarmed . | . . . . . Reprogrammed . | . . . . . Reused . | . . . . . Traps Extracted . | . . . . . Installed . | . . . . . Triggered . | . . . . . Exploded 2 | . . . . 2 Machines | -11 -10 -10 -10 -9 ---------- Run | Jun Mat Min Exi Min Machines Disabled 3 | . 1 1 . 1 Max in Single Turn 1 | . 1 1 . 1 Machines Repaired . | . . . . . Machines Sabotaged . | . . . . . Overloaded Fab Kills . | . . . . . Hacking | -11 -10 -10 -10 -9 --------- Run | Jun Mat Min Exi Min Machines Accessed 16 | . 11 1 4 . Terminals 9 | . 8 1 . . Fabricators . | . . . . . Repair Stations 1 | . 1 . . . Recycling Units 2 | . 2 . . . Scanalyzers . | . . . . . Garrison Access . | . . . . . Total Hacks 83 | . 32 2 49 . Successful 70 | . 19 2 49 . Failed 13 | . 13 . . . Catastrophic 1 | . 1 . . . Database Lockouts . | . . . . . Manual 11 | . 10 . 1 . Terminals 27 | . 25 2 . . Fabricators . | . . . . . Repair Stations 4 | . 4 . . . Recycling Units 3 | . 3 . . . Scanalyzers . | . . . . . Garrison Access . | . . . . . Terminal Hacks 62 | . 11 2 49 . Record 54 | . 4 1 49 . Prototype ID Bank 2 | . 2 . . . Emergency Access Points 1 | . 1 . . . Terminal Index 1 | . 1 . . . Alert Level 1 | . . 1 . . Dispatch Records 1 | . 1 . . . Zone Layout 2 | . 2 . . . Fabricator Hacks . | . . . . . Repair Station Hacks 2 | . 2 . . . Scan Component 1 | . 1 . . . Repair 1 | . 1 . . . Recycling Unit Hacks 3 | . 3 . . . Report Inventory 2 | . 2 . . . Retrieve Matter 1 | . 1 . . . Scanalyzer . | . . . . . Garrison Access Hacks . | . . . . . Unauthorized Hacks 3 | . 3 . . . Terminals 3 | . 3 . . . Botnet 3 | . 3 . . . Fabricators . | . . . . . Repair Stations . | . . . . . Recycling Units . | . . . . . Scanalyzers . | . . . . . Garrison Access . | . . . . . Data Cores Recovered . | . . . . . Used . | . . . . . Hacking Detections 9 | . 9 . . . Full Trace Events . | . . . . . Feedback Events . | . . . . . Feedback Blocked . | . . . . . Robot Schematics Acquired . | . . . . . Robots Built . | . . . . . Authchips . | . . . . . Time . | . . . . . Total Robot Build Rating . | . . . . . Part Schematics Acquired . | . . . . . Parts Built . | . . . . . Authchips . | . . . . . Time . | . . . . . Total Part Build Rating . | . . . . . Parts Repaired 1 | . 1 . . . Time 26 | . 26 . . . Parts Recycled . | . . . . . Recycled Matter . | . . . . . Retrieved Matter 34 | . 34 . . . Retrieved Components . | . . . . . Parts Scanalyzed . | . . . . . Part Schematics Acquired . | . . . . . Parts Damaged . | . . . . . Bothacking | -11 -10 -10 -10 -9 ------------ Run | Jun Mat Min Exi Min Used RIF Installer . | . . . . . Robots Hacked 1 | . 1 . . . Non-combat 1 | . 1 . . . Combat . | . . . . . Robot Hacks Applied 1 | . 1 . . . no_distress 1 | . 1 . . . Relay Couplers Released . | . . . . . Fabnet Peak Effective % . | . . . . . Robots Rewired . | . . . . . Allies Hacked . | . . . . . Hacks Repelled . | . . . . . Allies | -11 -10 -10 -10 -9 -------- Run | Jun Mat Min Exi Min Total Allies 3 | . . . . 3 Largest Group 3 | . . . . 3 Highest-Rated Group 40 | . . . . 40 Highest-Rated Ally 16 | . . . . 16 Total Orders . | . . . . . Ally Attacks 8 | . . . . 8 Total Damage 68 | . . . . 68 Kills . | . . . . . Allies Corrupted . | . . . . . Allies Melted . | . . . . . Intel | -11 -10 -10 -10 -9 ------- Run | Jun Mat Min Exi Min Robot Analysis Total . | . . . . . Derelict Logs Recovered 3 | . . 2 . 1 Drone Launches . | . . . . . Drone Recoveries . | . . . . . Exploration | -11 -10 -10 -10 -9 ------------- Run | Jun Mat Min Exi Min Turns Passed 4810 | 168 1551 1097 1031 963 Spaces Moved 3119 | 94 1014 688 691 632 Core 6 | 6 . . . . Treads 11 | 11 . . . . Legs 90 | 77 12 . . 1 Wheels 1954 | . 236 396 691 631 Hover 1058 | . 766 292 . . Flight . | . . . . . Fastest Speed 50 | 50 100 105 100 100 Average Speed 130 | 122 127 147 142 106 Slowest Speed 260 | 160 245 176 190 260 Overloaded Moves . | . . . . . Propulsion Burnouts . | . . . . . Robots Hopped . | . . . . . Cave-ins Triggered . | . . . . . Exploration Rate (%) 74 | 6 99 100 92 77 Regions Visited 4 Branch Regions 3 Pre-discovered Areas 3 | . . 1 1 1 Known Exits Taken 3 | . 1 1 1 . Unknown Exits Taken 1 | 1 . . . . Scrap Searched 1 | . . 1 . . Spaces Dug . | . . . . . Terrain Destroyed 65 | . . 12 . 53 Melee . | . . . . . Projectile 7 | . . 1 . 6 AOE 58 | . . 11 . 47 Terrain Rammed . | . . . . . Walls Destroyed . | . . . . . Machines Disabled . | . . . . . Actions | -11 -10 -10 -10 -9 --------- Run | Jun Mat Min Exi Min Total 3592 | 137 1178 732 739 806 Wait 105 | 16 29 6 4 50 Move 3115 | 93 1013 687 690 632 Hop . | . . . . . Pick Up 83 | 12 26 5 26 14 Fast Attach 21 | 4 9 3 1 4 Attach 14 | 4 3 1 3 3 Detach 10 | 1 5 2 2 . Swap 43 | 2 23 2 2 14 Drop 51 | 1 23 2 7 18 Fire 145 | 4 46 24 . 71 Melee 1 | . 1 . . . Ram . | . . . . . Kick . | . . . . . Crush . | . . . . . Escape Stasis . | . . . . . Rewire 4 | . . . 4 . Trap . | . . . . . Miscellaneous . | . . . . . Route ------- -11/Junkyard -10/Materials (discovered 5 exits: *Mat x3 / *Min x2) -10/Mines (discovered 3 exits: *Mat x2 / *Exi) -10/Exiles (discovered 2 exits: *Min x2) -9/Mines (discovered 2 exits: [*Mat x2]) History --------- Turn | Location | Event 9 | -11/Junkyard | Discovered new exit (range 14) 169 | -11/Junkyard | Entered Materials 240 | -10/Materials | Discovered new exit (range 16) 303 | -10/Materials | Build established: Mutant 409 | -10/Materials | Discovered new exit (range 15) 696 | -10/Materials | Discovered new exit (range 10) 922 | -10/Materials | Discovered new exit (range 7) 1023 | -10/Materials | Repaired Hover Unit 1130 | -10/Materials | Discovered new exit (range 16) 1302 | -10/Materials | Identified exit to Mines 1607 | -10/Materials | Identified exit to Materials 1720 | -10/Materials | Entered Mines 1936 | -10/Mines | Discovered exit to Materials (range 9) 2158 | -10/Mines | Learned location of Mines (-9) 2177 | -10/Mines | Deemed a non-threat by the Exiles lab entrance 2177 | -10/Mines | Discovered new exit (range 5) 2182 | -10/Mines | Identified exit to Exiles 2241 | -10/Mines | Learned Materials security intel 2502 | -10/Mines | Discovered exit to Materials (range 9) 2817 | -10/Mines | Entered Exiles 2854 | -10/Exiles | Discovered new exit (range 14) 2867 | -10/Exiles | Identified exit to Mines 2889 | -10/Exiles | Met 8R-AWN 2907 | -10/Exiles | Met EX-HEX 2981 | -10/Exiles | Met EX-BIN 2988 | -10/Exiles | Build established: Scavenger-Mutant 3142 | -10/Exiles | Met EX-DEC 3162 | -10/Exiles | Learned location of Zion (-6) 3205 | -10/Exiles | Discovered exit to Mines (range 14) 3434 | -10/Exiles | Visited The Gauntlet 3599 | -10/Exiles | Build established: Hauler-Mutant 3848 | -10/Exiles | Entered Mines 3848 | -9/Mines | Discovered new exit (range 9) 3973 | -9/Mines | Found a damaged Exp. Sensor Array with a note attached 3975 | -9/Mines | Found Prototype Device 3977 | -9/Mines | Identified Exp. Sensor Array 4051 | -9/Mines | A weapon hastily lodged in a ceiling crevice suddenly fell to the ground 4087 | -9/Mines | YI-UF0 nonchalantly dropped a Grenade Launcher on the ground 4112 | -9/Mines | Build established: Mutant 4414 | -9/Mines | Discovered new exit (range 9) 4494 | -9/Mines | Assembled infested the area 4496 | -9/Mines | Assisted by bots powering up and referring to "LRC-V3" 4499 | -9/Mines | Assisted by a Guerilla fighting off Assembled 4790 | -9/Mines | Core integrity fell below 50% 4794 | -9/Mines | Destroyed YI-UF0 4797 | -9/Mines | Core integrity fell below 20% 4809 | -9/Mines | Found Prototype Storage 4809 | -9/Mines | Identified YI-UF0's Bottomless Matter Pit 4811 | -9/Mines | Self-destructed Last Messages --------------- 04790_ The unstable cave ceiling collapses. 04790_ YI-UF0 Prototype Storage blasted off. 04792_ U-05 Engineer builds a Wall. 04794_ YI-UF0 destroyed. 04795_ The unstable cave ceiling collapses. 04798_ Acquired 62 matter. 04799_ U-05 Engineer builds a Wall. 04799_ as-31490 destroyed. 04800_ Acquired 3 matter. 04801_ The unstable cave ceiling collapses. 04802_ Acquired 1 matter. 04803_ The unstable cave ceiling collapses. 04803_ U-05 Engineer builds a Wall. 04806_ K-01 Serf collects debris. 04807_ U-05 Engineer builds a Wall. 04808_ The unstable cave ceiling collapses. 04809_ Acquired Prototype Storage. 04809_ Identified YI-UF0's Bottomless Matter Pit. 04810_ K-01 Serf collects debris. 04811_ The unstable cave ceiling collapses. Map ----- +----------------------------------------------------+ | ??# #?#!#?????# ?????# ##????####??# ## #? | | ??# #?#!#?????## ?????# #?????# #### ## #? | | ??# ### ## ##### #???? #?????# ## #? | | ??# #?## ???? ?????# #? | | #?#### #### #?# ??? #???## #######? | | ###### #????????? ??? #??## #??????? | | ## #???????? ??## #?## ##??????? | | # #######?? ????## #### #???????? | | #??#? ###??????###?# ! ##???????? | | #??????????????????## !%! #????????? | | # ##### #??????????????????# =* ##????????? | | # #???????????????????????## #####?????????? | | # ##????????????????######## %##?????????????? | | ## #???????????????### " #??????????????? | | ?## ##???????????????# = #??????????????? | | ??# #????????????????# # ="##??????????????? | | ??# #????????????????# " ?????###???????? | | ??# #????????????????# / #?????# ##??????? | | ?? ????????????????# ##????# #??????? | | ?? ?????????????# ## [ #????" #??????? | | ? ????????????# ###??### #???????? | | ? ????????????###### ## #??## #????????? | | ???????????????# #### ##????????? | | ?## ????????????????#% # ##????????? | | ???# ????????????????#%% % #????????? | | ???? ???????????####### @ # ###??????? | | ????????????????# % %! ###????? | | ????????????????# ####### % #????? | | ???????????????????????# # #k # #????? | | ???????????????????????######### #????? | | ???????????????????????????????### %## ## ##????? | | ?????????????????????????????#### u #????? | | ????????????????????????????## % ####?? | | ????????????????????????????# ###### ##? | | ????????????????????????????# #### ## # # #? | | ????????????????????????????# ## ### # ### | | ????????????????????????????# ## % | | ????????????????????????????## ######=% * ### | | ????????????????????????????#### =%%![! % # | | ???????????????????????????## ## ######%*!!=!## | | ???????????????????????????# ### #=%*%!## | | ???????????????????????????# ## %# ## ! *!*%=# # | | ???????????????????????????# #% ## * %! | | ???????????????????????????# # ## % % | | ???????????????????????????# # # | | ?????????????????????????### ### ## "" % " | | ????????????????????????## ## ## % """ | | ???????????????????????## = " """ """ | | ??????????????????????## ## % % | | ????????????????????### # """ """ | +----------------------------------------------------+ Best States ------------- Heat Dissipation 25 Energy Generation 12 Energy Capacity 265 Matter Stores 1615 Matter Capacity 1800 Sight Range 16 Robot Scan Range 20 Terrain Scan Density 10 Armor Coverage 150 Resistance: KI 20 Resistance: TH 20 Resistance: EX 20 Resistance: EM 20 Resistance: I 20 Resistance: S 20 Resistance: P 20 Evasion (%) 55 Recoil Reduction 2 Offensive Hacking 10 Item Schematics ----------------- None Robot Schematics ------------------ None Fabricated ------------ Nothing Alien Tech Used ----------------- None Achievements -------------- None Challenges ------------ None Game ------ Seed PlasmaRemoteAirjet Manual? 0 Play Time 01:56:52 Cumulative 254.0 hours Start 2023.12.02 @ 01:45:26 End 2023.12.03 @ 17:46:54 Sessions 8 Manual Loads 0 Difficulty Adventurer Special Mode None Game No. 89 Rogue 80 Adventurer 9 Explorer 0 Win Type - Total 0 Types 0/0/0/0/0/0/0/0/0 Lore% 42 Gallery% 44 Achievement% 61 Wizard Run 0 Options --------- ASCII 0 Keyboard 1 Movement Vi Keybinds 0 Fullscreen 1 Font 18/SmallcapsGlow Map View 76x50 Tactical HUD 1 Map Filters NONE Filters NONE Steam 1 RUN: dc9474f1-1d21-4f7a-a566-097addbb47fd